fUSD/lending_fUSD_20240222
["ID","MTS","AMOUNT","RATE_DAILY","PERIOD"]
[314891888,1708625432399,-822.08,0.00029478,2]
[314891890,1708625438043,-250.0,0.00028298,2]
[314891891,1708625438059,-1303.65636861,0.00029478,2]
[314891892,1708625438075,-83361.41402996,0.00029478,2]
[314891893,1708625438088,-9708.8471,0.00029478,2]
[314891894,1708625438100,-158.55805005,0.00029519,2]
[314891895,1708625438112,-664.75551155,0.00029577,5]
[314891896,1708625438124,-199.725388,0.0002962,2]
[314891897,1708625438135,-1012.59868196,0.0002962,2]
[314891898,1708625438148,-26323.5386,0.0002962,2]
[314891899,1708625438161,-2342.89305548,0.0002962,2]
[314891900,1708625438175,-164.00101498,0.0002964,2]
[314891901,1708625438187,-158.55805005,0.0002966,2]
[314891902,1708625438200,-4342.50541348,0.00029718,2]
[314891903,1708625438211,-90822.83,0.00029718,5]
[314891904,1708625438223,-1626846.03621197,0.0002972,2]
[314891906,1708625438234,-5000.0,0.0002978,2]
[314891908,1708625438247,-158.55805005,0.000298,2]
[314891910,1708625438258,-211.62878482,0.000298,16]
[314891912,1708625438270,-2243.91443522,0.000298,2]
[314891913,1708625438281,-1374.16183662,0.000298,2]
[314891914,1708625438293,-298.07599863,0.000298,2]
[314891915,1708625438304,-189.82476113,0.000298,2]
[314891916,1708625438315,-1957.81079522,0.000298,2]
[314891917,1708625438327,-1611.01,0.00029815,2]
[314891918,1708625438339,-455.97336861,0.00029879,2]
[314891919,1708625438351,-305.51145351,0.00029879,2]
[314891920,1708625438363,-433.95600324,0.00029879,2]
[314891921,1708625438375,-424.23734374,0.00029879,2]
[314891922,1708625438387,-527.64420251,0.00029879,2]
[314891923,1708625438399,-407.13953584,0.00029879,2]
[314891924,1708625438411,-455.48645481,0.00029879,2]
[314891925,1708625438423,-226.13322964,0.00029879,2]
[314891926,1708625438435,-1182523.88730482,0.0002988,2]
[314891927,1708625438450,-306156.80026283,0.0002988,2]
[314891928,1708625438527,-30993.89999993,0.0002988,2]
[314891929,1708625439998,484.29,0.00027297,2]
[314891932,1708625440690,-484.29,0.00029561,2]
[314891933,1708625440704,-258.83760791,0.0002988,2]
[314891934,1708625440718,-20946.64399209,0.0002988,2]
[314891935,1708625441412,-3277586.83477143,0.0002988,2]
[314891936,1708625441425,-162.72309137,0.000299,2]
[314891937,1708625441438,-1012.59868185,0.00029907,2]
[314891938,1708625441451,-789.87,0.00029956,2]
[314891939,1708625441463,-312.78337604,0.0003,4]
[314891940,1708625441476,-5890.96699637,0.0003,2]
[314891941,1708625441489,-155.0,0.0003,2]
[314891942,1708625441501,-40000.0,0.0003,2]
[314891944,1708625441513,-906.79959704,0.0003,2]
[314891946,1708625441526,-155.0,0.0003009,2]
[314891948,1708625441537,-1012.59868185,0.00030194,2]
[314891949,1708625441549,-1292.29784918,0.0003046,2]
[314891950,1708625441561,-1012.59868185,0.00030481,2]
[314891951,1708625441574,-2695.0,0.000305,2]
[314891952,1708625441586,-211.62878481,0.00030544,18]
[314891953,1708625441599,-1012.59868185,0.00030768,2]
[314891954,1708625441611,-1292.29784918,0.00030815,2]
[314891955,1708625441622,-494.50595634,0.0003088,2]
[314891956,1708625441636,-1880830.2820112,0.0003088,2]
[314891957,1708625441648,-54574.31729815,0.00031,2]
[314891958,1708625441659,-150.1,0.00031,2]
[314891959,1708625441671,-1012.59868185,0.00031055,2]
[314891960,1708625441683,-1292.29784918,0.00031142,2]
[314891961,1708625441695,-1292.29784918,0.00031276,2]
[314891962,1708625441707,-2243.91443522,0.00031288,2]
[314891963,1708625441718,-1374.16183661,0.00031288,2]
[314891964,1708625441730,-211.62878481,0.00031288,19]
[314891965,1708625441742,-298.07599862,0.00031288,2]
[314891966,1708625441754,-1957.81079521,0.00031288,2]
[314891967,1708625441766,-192.43666526,0.00031331,2]
[314891968,1708625441778,-1012.59868185,0.00031341,2]
[314891969,1708625441798,-150.0,0.00031388,2]
[314891970,1708625441818,-42635.0,0.00031391,2]
[314891971,1708625441833,-8180.0,0.00031391,2]
[314891972,1708625441846,-19886.0,0.00031391,2]
[314891973,1708625441862,-4106.0,0.00031391,2]
[314891974,1708625441876,-7432.0,0.00031391,2]
[314891975,1708625441890,-2933.0,0.00031391,2]
[314891976,1708625441904,-5636.0,0.00031391,2]
[314891977,1708625441917,-2294.0,0.00031391,2]
[314891978,1708625441931,-1039.0,0.00031391,2]
[314891979,1708625441944,-187.64,0.00031417,2]
[314891980,1708625441958,-280.39991762,0.00031429,5]
[314891981,1708625441972,-152.0,0.00031469,3]
[314891982,1708625441986,-200.0,0.00031512,2]
[314891983,1708625442000,-3000.0,0.00031512,2]
[314891984,1708625442010,-229.05477039,0.00031513,4]
[314891985,1708625442019,-200000.0,0.00031514,7]
[314891986,1708625442029,-6079.2659945,0.00031517,2]
[314891987,1708625442038,-6870.6977925,0.00031539,2]
[314891988,1708625442047,-153.98,0.00031569,2]
[314891989,1708625442057,-161.0,0.00031581,2]
[314891990,1708625442067,-789.87,0.00031599,2]
[314891991,1708625442076,-152.98,0.00031626,2]
[314891992,1708625442804,-1012.59868185,0.00031628,3]
[314891994,1708625442868,-366.56872254,0.00031675,4]
[314891995,1708625442897,-44578.21466541,0.00031676,4]
[314891996,1708625442914,-44578.21466541,0.00031676,4]
[314891997,1708625442925,-1514.28898733,0.00031677,4]
[314891998,1708625442937,-39496.3626974,0.00031678,4]
[314891999,1708625442946,-44578.21466541,0.00031681,4]
[314892000,1708625442956,-1143.5279146,0.00031684,4]
[314892001,1708625442966,-296.37471186,0.00031686,4]
[314892002,1708625442975,-74142.12947225,0.00031686,4]
[314892003,1708625442984,-1401.13073251,0.00031686,4]
[314892004,1708625442993,-11144.55366635,0.0003169,4]
[314892005,1708625443002,-472.70487547,0.00031697,4]
[314892006,1708625443012,-770.46207013,0.000317,4]
[314892007,1708625443021,-11618.35692142,0.00031701,4]
[314892008,1708625443037,-74142.12947225,0.00031701,4]
[314892009,1708625443047,-296.37471186,0.00031701,4]
[314892010,1708625443057,-366.56872254,0.00031702,4]
[314892011,1708625443067,-1514.28898733,0.00031702,4]
[314892012,1708625443077,-1401.13073251,0.00031702,4]
[314892013,1708625443086,-1143.5279146,0.00031704,4]
[314892014,1708625443096,-11144.55366635,0.00031704,4]
[314892015,1708625443106,-472.70487547,0.00031705,4]
[314892016,1708625443116,-770.46207013,0.00031706,4]
[314892017,1708625443127,-296.37471186,0.00031706,4]
[314892018,1708625443137,-9874.09067435,0.00031707,4]
[314892019,1708625443147,-770.46207013,0.00031708,4]
[314892020,1708625443157,-74142.12947225,0.00031708,4]
[314892021,1708625443168,-770.46207013,0.00031708,4]
[314892022,1708625443177,-568.3474084,0.00031709,4]
[314892023,1708625443187,-44578.21466541,0.0003171,4]
[314892024,1708625443197,-38402.24778133,0.00031712,4]
[314892025,1708625443207,-44578.21466541,0.00031714,4]
[314892026,1708625443217,-762.35194306,0.00031715,4]
[314892027,1708625443228,-11144.55366635,0.00031718,4]
[314892028,1708625443238,-366.56872254,0.00031719,4]
[314892029,1708625443250,-11618.35692142,0.00031721,4]
[314892030,1708625443261,-366.56872254,0.00031722,4]
[314892031,1708625443271,-74142.12947225,0.00031723,4]
[314892032,1708625443281,-296.37471186,0.00031725,4]
[314892033,1708625443291,-762.35194306,0.00031726,4]
[314892034,1708625443301,-472.70487547,0.00031733,4]
[314892035,1708625443312,-39496.3626974,0.00031734,4]
[314892036,1708625443323,-9874.09067435,0.00031736,4]
[314892037,1708625443334,-1401.13073251,0.00031737,4]
[314892038,1708625443344,-568.3474084,0.00031738,4]
[314892039,1708625443354,-762.35194306,0.00031739,4]
[314892040,1708625443365,-38402.24778133,0.0003174,4]
[314892041,1708625443375,-1514.28898733,0.00031741,4]
[314892042,1708625443386,-1514.28898733,0.00031742,4]
[314892043,1708625443395,-9874.09067435,0.00031742,4]
[314892044,1708625443406,-762.35194306,0.00031743,4]
[314892045,1708625443416,-568.3474084,0.00031745,4]
[314892046,1708625443427,-770.46207013,0.00031746,4]
[314892047,1708625443437,-1143.5279146,0.00031749,4]
[314892048,1708625443447,-366.56872254,0.00031753,4]
[314892049,1708625443457,-472.70487547,0.00031756,4]
[314892050,1708625443473,-1401.13073251,0.00031759,4]
[314892051,1708625443484,-11144.55366635,0.00031761,4]
[314892052,1708625443496,-472.70487547,0.00031761,4]
[314892053,1708625443506,-11618.35692142,0.00031765,4]
[314892054,1708625443515,-762.35194306,0.00031767,4]
[314892055,1708625443525,-11618.35692142,0.00031771,4]
[314892056,1708625443536,-74142.12947225,0.00031771,4]
[314892057,1708625443546,-296.37471186,0.00031772,4]
[314892058,1708625443557,-39496.3626974,0.00031773,4]
[314892059,1708625443566,-11144.55366635,0.00031774,4]
[314892060,1708625443576,-568.3474084,0.00031781,4]
[314892061,1708625443587,-38402.24778133,0.00031781,4]
[314892062,1708625443597,-1143.5279146,0.00031782,4]
[314892063,1708625443607,-11618.35692142,0.00031783,4]
[314892064,1708625443617,-9874.09067435,0.00031787,4]
[314892065,1708625443628,-1143.5279146,0.00031789,4]
[314892066,1708625443638,-38402.24778133,0.00031789,4]
[314892067,1708625443649,-39496.3626974,0.00031789,4]
[314892068,1708625443659,-39496.3626974,0.00031791,4]
[314892069,1708625443669,-1514.28898733,0.00031793,4]
[314892070,1708625443679,-38402.24778133,0.00031793,4]
[314892071,1708625443690,-1401.13073251,0.00031793,4]
[314892072,1708625443699,-568.3474084,0.00031794,4]
[314892073,1708625443709,-9874.09067435,0.00031798,4]
[314892074,1708625443719,-4333.0,0.00031799,30]
[314892075,1708625443729,-200.0,0.000318,4]
[314892076,1708625443740,-206962.896226,0.000318,2]
[314892077,1708625443750,-484.29,0.00031825,2]
[314892078,1708625443760,-280.39991762,0.00031878,5]
[314892079,1708625443769,-1012.59868185,0.00031915,3]
[314892080,1708625443779,-150.0,0.00031979,2]
[314892081,1708625443789,-250.0,0.00031979,2]
[314892082,1708625443799,-150.0,0.00031979,2]
[314892083,1708625443809,-150.0,0.00031979,2]
[314892084,1708625443819,-150.0,0.00031979,2]
[314892085,1708625443829,-249.818,0.00031979,2]
[314892086,1708625443838,-171.671,0.00031979,2]
[314892087,1708625443848,-2694.0,0.00031979,2]
[314892088,1708625443862,-1372.0,0.00031979,2]
[314892089,1708625443873,-1869.0,0.00031979,2]
[314892090,1708625443885,-955.0,0.00031979,2]
[314892091,1708625443896,-710.0,0.00031979,2]
[314892092,1708625443907,-533.0,0.00031979,2]
[314892093,1708625443917,-458.0,0.00031979,2]
[314892094,1708625443927,-216.0,0.00031979,2]
[314892095,1708625443937,-600.0,0.00031979,2]
[314892096,1708625443946,-1231.0,0.00031979,2]
[314892097,1708625443956,-1953.0,0.00031979,2]
[314892098,1708625443966,-1257.0,0.00031979,2]
[314892099,1708625443976,-1007.0,0.00031979,2]
[314892100,1708625443986,-859.0,0.00031979,2]
[314892101,1708625443996,-430.0,0.00031979,2]
[314892102,1708625444006,-276.0,0.00031979,2]
[314892103,1708625444016,-302.0,0.00031979,2]
[314892104,1708625444026,-2890.0,0.00031979,2]
[314892105,1708625444036,-322.0,0.00031979,2]
[314892106,1708625444046,-1138.0,0.00031979,2]
[314892107,1708625444056,-338.0,0.00031979,2]
[314892108,1708625444065,-2432.395,0.00031979,2]
[314892109,1708625444075,-455.0,0.00031979,2]
[314892110,1708625444084,-390.0,0.00031979,2]
[314892111,1708625444094,-200000.0,0.00032,2]
[314892112,1708625444103,-119757.65359215,0.00032,7]
[314892113,1708625444113,-1292.29784918,0.00032,2]
[314892114,1708625444122,-5079.85545146,0.00032,2]
[314892115,1708625444134,-4000.0,0.00032,2]
[314892116,1708625444143,-211.62878481,0.00032032,20]
[314892117,1708625444153,-453.0,0.00032078,3]
[314892118,1708625444163,-161.0,0.00032129,2]
[314892119,1708625444173,-1292.29784922,0.00032167,2]
[314892120,1708625444183,-200.0,0.00032179,2]
[314892121,1708625444193,-800.0,0.00032179,2]
[314892122,1708625444203,-200.0,0.00032179,2]
[314892123,1708625444212,-200.0,0.00032179,2]
[314892124,1708625444222,-1012.59868185,0.00032202,4]
[314892125,1708625444231,-1148.78731496,0.00032311,2]
[314892126,1708625444241,-3060.7968894,0.00032312,2]
[314892127,1708625444251,-181.20128147,0.00032318,2]
[314892128,1708625444260,-955.46730159,0.00032321,2]
[314892129,1708625444269,-90104.90198337,0.00032322,2]
[314892130,1708625444279,-740.9367797,0.00032325,2]
[314892131,1708625444289,-19958.26838442,0.00032325,2]
[314892132,1708625444299,-280.39991762,0.00032327,6]
[314892133,1708625444309,-2311.38621046,0.00032345,2]
[314892134,1708625444319,-154.48454292,0.00032347,2]
[314892135,1708625444329,-2311.38621046,0.00032348,2]
[314892136,1708625444339,-22526.22549592,0.00032348,2]
[314892137,1708625444349,-90104.90198337,0.00032356,2]
[314892138,1708625444358,-79833.0735374,0.00032357,2]
[314892139,1708625444368,-181.20128147,0.00032359,2]
[314892140,1708625444380,-610.84,0.00032362,2]
[314892141,1708625444392,-1229.75,0.0003238,2]
[314892142,1708625444402,-152.98,0.00032397,2]
[314892143,1708625444413,-149861.75106105,0.000324,2]
[314892144,1708625444424,-154.48454292,0.00032401,2]
[314892145,1708625444434,-1557.31695036,0.00032411,2]
[314892146,1708625444444,-22526.22549592,0.00032416,2]
[314892147,1708625444455,-1148.78731496,0.00032417,2]
[314892148,1708625444465,-77621.56466449,0.00032417,2]
[314892149,1708625444475,-740.9367797,0.00032424,2]
[314892150,1708625444485,-19958.26838442,0.00032427,2]
[314892151,1708625444495,-149861.75106105,0.00032431,2]
[314892152,1708625444505,-599.05526875,0.00032432,2]
[314892153,1708625444516,-2832.0727573,0.00032432,2]
[314892154,1708625444526,-599.05526875,0.00032434,2]
[314892155,1708625444535,-240.47609181,0.0003244,2]
[314892156,1708625444545,-1557.31695036,0.00032458,2]
[314892157,1708625444555,-23483.91292638,0.00032462,2]
[314892158,1708625444565,-23483.91292638,0.00032468,2]
[314892159,1708625444574,-77621.56466449,0.00032478,2]
[314892160,1708625444584,-1540.92414034,0.0003248,2]
[314892161,1708625444594,-1540.92414034,0.00032486,2]
[314892162,1708625444604,-2832.0727573,0.00032486,2]
[314892163,1708625444614,-79833.0735374,0.00032487,2]
[314892164,1708625444624,-1012.59868185,0.00032489,4]
[314892165,1708625444636,-955.46730159,0.00032497,2]
[314892166,1708625444646,-240.47609181,0.00032498,2]
[314892167,1708625444657,-3060.7968894,0.00032499,2]
[314892168,1708625444667,-1000.0,0.000325,2]
[314892169,1708625444676,-187.64,0.00032529,2]
[314892170,1708625444686,-500.0,0.0003254,2]
[314892171,1708625444695,-500.0,0.0003254,2]
[314892172,1708625444705,-500.0,0.0003254,2]
[314892173,1708625444714,-500.0,0.0003254,2]
[314892174,1708625444724,-500.0,0.0003254,2]
[314892175,1708625444733,-500.0,0.0003254,2]
[314892176,1708625444743,-500.0,0.0003254,2]
[314892177,1708625444752,-500.0,0.0003254,2]
[314892178,1708625444761,-500.0,0.0003254,2]
[314892179,1708625444772,-500.0,0.0003254,2]
[314892180,1708625444781,-500.0,0.0003254,2]
[314892181,1708625444791,-500.0,0.0003254,2]
[314892182,1708625444800,-500.0,0.0003254,2]
[314892183,1708625444810,-500.0,0.0003254,2]
[314892184,1708625444820,-500.0,0.0003254,2]
[314892185,1708625444829,-500.0,0.0003254,2]
[314892186,1708625444839,-500.0,0.0003254,2]
[314892187,1708625444849,-500.0,0.0003254,2]
[314892188,1708625444862,-500.0,0.0003254,2]
[314892189,1708625444871,-500.0,0.0003254,2]
[314892190,1708625444881,-500.0,0.0003254,2]
[314892191,1708625444891,-500.0,0.0003254,2]
[314892192,1708625444901,-500.0,0.0003254,2]
[314892193,1708625444911,-500.0,0.0003254,2]
[314892194,1708625444921,-500.0,0.0003254,2]
[314892195,1708625444930,-500.0,0.0003254,2]
[314892196,1708625444941,-500.0,0.0003254,2]
[314892197,1708625444952,-500.0,0.0003254,2]
[314892198,1708625444961,-500.0,0.0003254,2]
[314892199,1708625444970,-500.0,0.0003254,2]
[314892200,1708625444980,-500.0,0.0003254,2]
[314892201,1708625444989,-500.0,0.0003254,2]
[314892202,1708625444999,-500.0,0.0003254,2]
[314892203,1708625445009,-500.0,0.0003254,2]
[314892204,1708625445018,-500.0,0.0003254,2]
[314892205,1708625445027,-500.0,0.0003254,2]
[314892206,1708625445037,-500.0,0.0003254,2]
[314892207,1708625445046,-500.0,0.0003254,2]
[314892208,1708625445055,-500.0,0.0003254,2]
[314892209,1708625445065,-500.0,0.0003254,2]
[314892210,1708625445075,-500.0,0.0003254,2]
[314892211,1708625445084,-500.0,0.0003254,2]
[314892212,1708625445093,-500.0,0.0003254,2]
[314892213,1708625445102,-500.0,0.0003254,2]
[314892214,1708625445111,-500.0,0.0003254,2]
[314892215,1708625445121,-500.0,0.0003254,2]
[314892216,1708625445132,-500.0,0.0003254,2]
[314892217,1708625445143,-500.0,0.0003254,2]
[314892218,1708625445270,-500.0,0.0003254,2]
[314892219,1708625445280,-500.0,0.0003254,2]
[314892220,1708625445290,-500.0,0.0003254,2]
[314892221,1708625445300,-500.0,0.0003254,2]
[314892222,1708625445310,-500.0,0.0003254,2]
[314892223,1708625445320,-500.0,0.0003254,2]
[314892224,1708625445330,-500.0,0.0003254,2]
[314892225,1708625445340,-500.0,0.0003254,2]
[314892226,1708625445350,-500.0,0.0003254,2]
[314892227,1708625445360,-500.0,0.0003254,2]
[314892228,1708625445370,-500.0,0.0003254,2]
[314892229,1708625445380,-500.0,0.0003254,2]
[314892230,1708625445397,-500.0,0.0003254,2]
[314892231,1708625445408,-500.0,0.0003254,2]
[314892232,1708625445419,-500.0,0.0003254,2]
[314892233,1708625445431,-500.0,0.0003254,2]
[314892234,1708625445442,-500.0,0.0003254,2]
[314892235,1708625445453,-500.0,0.0003254,2]
[314892236,1708625445464,-500.0,0.0003254,2]
[314892237,1708625445475,-500.0,0.0003254,2]
[314892238,1708625445485,-500.0,0.0003254,2]
[314892239,1708625445495,-500.0,0.0003254,2]
[314892240,1708625445504,-500.0,0.0003254,2]
[314892241,1708625445515,-500.0,0.0003254,2]
[314892242,1708625445525,-500.0,0.0003254,2]
[314892243,1708625445535,-500.0,0.0003254,2]
[314892244,1708625445544,-500.0,0.0003254,2]
[314892245,1708625445554,-500.0,0.0003254,2]
[314892246,1708625445564,-500.0,0.0003254,2]
[314892247,1708625445573,-500.0,0.0003254,2]
[314892248,1708625445583,-500.0,0.0003254,2]
[314892249,1708625445592,-500.0,0.0003254,2]
[314892250,1708625445602,-500.0,0.0003254,2]
[314892251,1708625445611,-500.0,0.0003254,2]
[314892252,1708625445621,-500.0,0.0003254,2]
[314892253,1708625445631,-500.0,0.0003254,2]
[314892254,1708625445644,-500.0,0.0003254,2]
[314892255,1708625445654,-500.0,0.0003254,2]
[314892256,1708625445663,-500.0,0.0003254,2]
[314892257,1708625445672,-500.0,0.0003254,2]
[314892258,1708625445681,-500.0,0.0003254,2]
[314892259,1708625445690,-500.0,0.0003254,2]
[314892260,1708625445699,-500.0,0.0003254,2]
[314892261,1708625445708,-500.0,0.0003254,2]
[314892262,1708625445717,-500.0,0.0003254,2]
[314892263,1708625445726,-500.0,0.0003254,2]
[314892264,1708625445736,-500.0,0.0003254,2]
[314892265,1708625445745,-500.0,0.0003254,2]
[314892266,1708625445754,-500.0,0.0003254,2]
[314892267,1708625445764,-500.0,0.0003254,2]
[314892268,1708625445773,-500.0,0.0003254,2]
[314892269,1708625445783,-500.0,0.0003254,2]
[314892270,1708625445792,-500.0,0.0003254,2]
[314892271,1708625445801,-500.0,0.0003254,2]
[314892272,1708625445810,-500.0,0.0003254,2]
[314892273,1708625445820,-500.0,0.0003254,2]
[314892274,1708625445830,-500.0,0.0003254,2]
[314892275,1708625445839,-500.0,0.0003254,2]
[314892276,1708625445848,-500.0,0.0003254,2]
[314892277,1708625445858,-500.0,0.0003254,2]
[314892278,1708625445869,-500.0,0.0003254,2]
[314892279,1708625445879,-500.0,0.0003254,2]
[314892280,1708625445891,-500.0,0.0003254,2]
[314892281,1708625445901,-500.0,0.0003254,2]
[314892282,1708625445911,-500.0,0.0003254,2]
[314892283,1708625445921,-500.0,0.0003254,2]
[314892284,1708625445930,-500.0,0.0003254,2]
[314892285,1708625445944,-500.0,0.0003254,2]
[314892286,1708625445953,-500.0,0.0003254,2]
[314892287,1708625445962,-500.0,0.0003254,2]
[314892288,1708625445971,-500.0,0.0003254,2]
[314892289,1708625445980,-500.0,0.0003254,2]
[314892290,1708625445990,-500.0,0.0003254,2]
[314892291,1708625445999,-500.0,0.0003254,2]
[314892292,1708625446008,-500.0,0.0003254,2]
[314892293,1708625446017,-500.0,0.0003254,2]
[314892294,1708625446027,-500.0,0.0003254,2]
[314892295,1708625446036,-500.0,0.0003254,2]
[314892296,1708625446046,-500.0,0.0003254,2]
[314892297,1708625446055,-500.0,0.0003254,2]
[314892298,1708625446065,-500.0,0.0003254,2]
[314892299,1708625446076,-500.0,0.0003254,2]
[314892300,1708625446086,-500.0,0.0003254,2]
[314892301,1708625446097,-500.0,0.0003254,2]
[314892302,1708625446108,-800.0,0.00032613,2]
[314892303,1708625446118,-161.0,0.00032677,2]
[314892304,1708625446128,-1000.0,0.00032713,2]
[314892305,1708625446140,-1000.0,0.00032713,2]
[314892306,1708625446150,-1000.0,0.00032713,2]
[314892307,1708625446160,-1000.0,0.00032713,2]
[314892308,1708625446170,-1000.0,0.00032713,2]
[314892309,1708625446181,-1000.0,0.00032713,2]
[314892310,1708625446191,-1000.0,0.00032713,2]
[314892311,1708625446201,-1000.0,0.00032713,2]
[314892312,1708625446211,-1000.0,0.00032713,2]
[314892313,1708625446220,-1000.0,0.00032713,2]
[314892314,1708625446230,-1000.0,0.00032713,2]
[314892315,1708625446241,-1000.0,0.00032713,2]
[314892316,1708625446253,-1000.0,0.00032713,2]
[314892317,1708625446262,-1000.0,0.00032713,2]
[314892318,1708625446272,-1000.0,0.00032713,2]
[314892319,1708625446282,-1000.0,0.00032713,2]
[314892320,1708625446291,-1000.0,0.00032713,2]
[314892321,1708625446300,-1000.0,0.00032713,2]
[314892322,1708625446311,-1000.0,0.00032713,2]
[314892323,1708625446321,-1000.0,0.00032713,2]
[314892325,1708625446330,-1000.0,0.00032713,2]
[314892327,1708625446340,-1000.0,0.00032713,2]
[314892329,1708625446349,-672.6403,0.00032713,2]
[314892331,1708625446359,-500.0,0.00032713,2]
[314892333,1708625446368,-500.0,0.00032713,2]
[314892335,1708625446378,-518.3736,0.00032713,2]
[314892338,1708625446389,-150.0,0.0003272,2]
[314892339,1708625446400,-1247.0482,0.00032776,2]
[314892340,1708625446410,-280.39991762,0.00032776,6]
[314892341,1708625446419,-2243.91443522,0.00032776,2]
[314892342,1708625446429,-1374.16183661,0.00032776,2]
[314892343,1708625446439,-211.62878481,0.00032776,21]
[314892344,1708625446449,-1012.59868185,0.00032776,4]
[314892345,1708625446458,-298.07599862,0.00032776,2]
[314892346,1708625446468,-189.82476112,0.00032776,2]
[314892347,1708625446477,-200.0,0.000328,5]
[314892348,1708625446487,-2907.34,0.000328,2]
[314892349,1708625446496,-2907.34,0.000328,2]
[314892350,1708625446505,-2907.34,0.000328,2]
[314892351,1708625446515,-150.0,0.000328,13]
[314892352,1708625446524,-1500.0,0.000328,10]
[314892353,1708625446535,-23884.84,0.00032845,5]
[314892354,1708625446545,-81000.1,0.00032845,5]
[314892355,1708625446554,-52808.48,0.00032845,5]
[314892356,1708625446563,-31062.76,0.00032845,5]
[314892357,1708625446573,-150.0,0.00032846,2]
[314892358,1708625446582,-3203.99999801,0.0003287,7]
[314892359,1708625446592,-214.93304577,0.00032874,4]
[314892360,1708625446602,-300.0,0.00032875,2]
[314892361,1708625446611,-300.0,0.00032875,2]
[314892362,1708625446622,-300.0,0.00032875,2]
[314892363,1708625446631,-300.0,0.00032875,2]
[314892364,1708625446641,-300.0,0.00032875,2]
[314892365,1708625446650,-300.0,0.00032875,2]
[314892366,1708625446660,-300.0,0.00032875,2]
[314892367,1708625446670,-300.0,0.00032875,2]
[314892368,1708625446679,-300.0,0.00032875,2]
[314892369,1708625446689,-162.45994033,0.00032876,2]
[314892370,1708625446698,-4981.76421879,0.00032876,2]
[314892371,1708625446708,-563.04296095,0.00032876,2]
[314892372,1708625446717,-500.0,0.00032876,2]
[314892373,1708625446728,-500.0,0.00032876,2]
[314892374,1708625446737,-500.0,0.00032876,2]
[314892375,1708625446747,-500.0,0.00032876,2]
[314892376,1708625446756,-451.89196897,0.00032876,2]
[314892377,1708625446765,-273.0439161,0.00032876,2]
[314892378,1708625446775,-502.14347219,0.00032876,2]
[314892379,1708625446784,-500.0,0.00032876,2]
[314892380,1708625446794,-517.45001235,0.00032876,2]
[314892381,1708625446803,-500.0,0.00032876,2]
[314892382,1708625446812,-500.0,0.00032876,2]
[314892383,1708625446821,-508.50346372,0.00032876,2]
[314892384,1708625446831,-500.0,0.00032876,2]
[314892385,1708625446840,-500.0,0.00032876,2]
[314892386,1708625446850,-530.01762176,0.00032876,2]
[314892387,1708625447066,-530.26037459,0.00032876,2]
[314892388,1708625447092,-542.6019967,0.00032876,2]
[314892389,1708625447101,-500.0,0.00032876,2]
[314892390,1708625447111,-552.25672863,0.00032876,2]
[314892391,1708625447120,-529.32935718,0.00032876,2]
[314892392,1708625447130,-500.0,0.00032876,2]
[314892393,1708625447140,-500.0,0.00032876,2]
[314892394,1708625447150,-500.0,0.00032876,2]
[314892395,1708625447159,-500.0,0.00032876,2]
[314892396,1708625447168,-330.0446414,0.00032876,2]
[314892397,1708625447177,-500.0,0.00032876,2]
[314892398,1708625447187,-560.99168132,0.00032876,2]
[314892399,1708625447196,-508.98381483,0.00032876,2]
[314892400,1708625447206,-500.0,0.00032876,2]
[314892401,1708625447215,-519.78184578,0.00032876,2]
[314892402,1708625447224,-500.0,0.00032876,2]
[314892403,1708625447233,-500.0,0.00032876,2]
[314892404,1708625447242,-500.0,0.00032876,2]
[314892405,1708625447252,-500.0,0.00032876,2]
[314892406,1708625447261,-500.0,0.00032876,2]